fUSD/lending_fUSD_20240802
["ID","MTS","AMOUNT","RATE_DAILY","PERIOD"]
[333895641,1722608833172,167.3,0.00010959,2]
[333895642,1722608843727,836.55,0.00010959,2]
[333895643,1722608852947,200.0,9.705e-05,2]
[333895644,1722608940684,280.0,0.00010999,2]
[333895645,1722608978897,200.0,9.631e-05,2]
[333895646,1722609008242,511.8825437,0.00010999,2]
[333895647,1722609019530,153.19,0.0001099,2]
[333895666,1722609032798,-2933.40559046,0.00011,2]
[333895667,1722609032810,-185614.30973422,0.00011,2]
[333895668,1722609032822,-825.40068476,0.00011,2]
[333895669,1722609032834,-3554.2,0.00011,2]
[333895670,1722609032911,-2012.29595931,0.00011,2]
[333895671,1722609032922,-517.85511205,0.00011,2]
[333895672,1722609032933,-820.87408869,0.00011,2]
[333895673,1722609032965,-43375.97873424,0.00011,2]
[333895674,1722609032987,-94116.4,0.00011,2]
[333895675,1722609033022,-1344.78568796,0.00011,2]
[333895676,1722609033034,-8258.45213897,0.00011,2]
[333895677,1722609033148,-1420.86797097,0.00011,2]
[333895678,1722609033166,-272.71179343,0.00011,2]
[333895679,1722609033209,-59015.58756695,0.00011,2]
[333895680,1722609033227,-61625.66672375,0.00011,2]
[333895682,1722609037572,-1589.60383166,0.00011,2]
[333895683,1722609038158,-11394.38602178,0.00011,2]
[333895684,1722609038172,-492.77079349,0.00011,2]
[333895686,1722609038187,-2688.08348897,0.00011,2]
[333895688,1722609038631,-6336.6802766,0.00011,2]
[333895710,1722609039759,-1846.34268908,0.00011,2]
[333895715,1722609042672,-65798.99810149,0.00011,2]
[333895724,1722609043767,-258.105,0.00011,2]
[333895728,1722609045872,-1279.62855792,0.00011,2]
[333895729,1722609045890,-6479.55249792,0.00011,2]
[333895730,1722609045967,-1617.05260901,0.00011,2]
[333895731,1722609046092,-1987.87391502,0.00011,2]
[333895733,1722609046186,-1069.91904895,0.00011,2]
[333895734,1722609046200,-31205.10663748,0.00011,2]
[333895735,1722609046210,-4102.39165468,0.00011321,2]
[333895736,1722609046220,-1256.32482105,0.00011324,2]
[333895737,1722609046234,-267.84720901,0.0001175,2]
[333895739,1722609046243,-550.0,0.00012,2]
[333895741,1722609046253,-2500.4353,0.0001236,2]
[333895743,1722609046262,-254.95149509,0.0001246,2]
[333895745,1722609046272,-200.0,0.00012594,2]
[333895747,1722609046281,-155.0,0.00012666,2]
[333895749,1722609046291,-40067.0,0.00012826,2]
[333895751,1722609046300,-947.76827511,0.00013332,2]
[333895753,1722609046311,-573.25,0.00013973,2]
[333895755,1722609046320,-600.0,0.00014,2]
[333895757,1722609046330,-9553.58654245,0.00015,2]
[333895759,1722609046340,-1255.0,0.00015197,2]
[333895760,1722609046350,-1203.0,0.00015197,2]
[333895762,1722609046359,-1250.0,0.00015197,2]
[333895764,1722609046369,-446.0,0.00015197,2]
[333895766,1722609046378,-811.0,0.00015197,2]
[333895768,1722609046387,-513.555,0.00015197,2]
[333895770,1722609046397,-1670.0,0.00015197,2]
[333895772,1722609046407,-184.371,0.00015197,2]
[333895774,1722609046417,-10611.12849074,0.00015197,2]
[333895776,1722609046431,-2779.85,0.00015197,2]
[333895803,1722609046693,-699.7398019,0.00015197,2]
[333895806,1722609046708,-1626.75378093,0.00015197,2]
[333896216,1722609066961,603.3383,0.000109,2]
[333896217,1722609085689,511.8825437,0.00010999,2]
[333896218,1722609101054,1837.6717,0.000109,2]
[333896219,1722609180702,511.8825437,0.000109,2]
[333896220,1722609192850,150.0,0.000109,2]
[333896221,1722609195695,511.8825437,0.000109,2]
[333896222,1722609206559,200.0,0.00027,120]
[333896223,1722609367479,405.96,0.00027,120]
[333896227,1722609622097,613.39,0.0001099,2]
[333896228,1722609640747,511.8825437,0.0001099,2]
[333896230,1722609746996,511.8825437,0.0001099,2]
[333896231,1722609760783,511.8825437,0.0001099,2]
[333896232,1722609794677,42525.82221113,0.0001099,2]
[333896233,1722609862129,203.77498918,0.00010935,2]
[333896234,1722609867836,511.8825437,0.0001099,2]
[333896235,1722609977272,511.8825437,0.0001099,2]
[333896237,1722610074276,419.658836,0.0001099,2]
[333896257,1722610232515,-155.0,0.00011105,2]
[333896258,1722610232524,-833.81762048,0.00011324,2]
[333896259,1722610232535,-570.09,0.00011324,2]
[333896260,1722610232547,-2698.4840342,0.00011324,2]
[333896261,1722610232556,-150.86,0.00012232,2]
[333896262,1722610232566,-300.0,0.0001239,2]
[333896263,1722610232576,-229.56198734,0.00012391,2]
[333896264,1722610232588,-2270.87331266,0.00012391,2]
[333896265,1722610232601,-548.06979085,0.00012666,2]
[333896266,1722610232611,-254.95149509,0.00012666,2]
[333896267,1722610232626,-344.83,0.00012962,2]
[333896268,1722610232636,-155.0,0.00013165,2]
[333896269,1722610232646,-302.93988605,0.00013297,2]
[333896270,1722610232659,-1200.22252239,0.00013297,2]
[333896271,1722610232671,-2411.95134433,0.00013297,2]
[333896272,1722610232683,-898.53028455,0.00013297,2]
[333896273,1722610232693,-947.56950504,0.00013297,2]
[333896274,1722610232704,-5431.88803453,0.00013297,2]
[333896275,1722610232716,-8493.81013702,0.00013297,2]
[333896276,1722610232726,-161.04741968,0.00013303,2]
[333896277,1722610232736,-420.0,0.00013597,2]
[333896278,1722610232746,-2019.42710678,0.00013879,2]
[333896279,1722610232757,-150.0,0.00013958,2]
[333896280,1722610232767,-150.41,0.00013973,2]
[333896281,1722610232776,-163.53,0.00013973,2]
[333896282,1722610232785,-358.32,0.00013973,2]
[333896283,1722610232795,-150.0,0.00014437,2]
[333896285,1722610232804,-150.0,0.00014475,2]
[333896287,1722610232814,-2259.20270972,0.00014519,2]
[333896289,1722610232823,-499.99,0.00014577,2]
[333896290,1722610232833,-487.09,0.00014577,2]
[333896292,1722610232843,-179.99,0.00014634,2]
[333896293,1722610232852,-150.0,0.00014634,2]
[333896294,1722610232861,-150.0,0.00014652,2]
[333896295,1722610232876,-150.0,0.00014655,2]
[333896296,1722610232886,-150.0,0.00014727,2]
[333896298,1722610232895,-150.0,0.00014748,2]
[333896300,1722610232905,-250.0,0.00014761,2]
[333896302,1722610232915,-1951.911444,0.00014795,2]
[333896304,1722610232924,-150.0,0.00014795,2]
[333896306,1722610232933,-191.26,0.00014854,2]
[333896308,1722610232942,-2000.0,0.00014859,2]
[333896310,1722610232952,-160.0,0.00014899,2]
[333896312,1722610232960,-150.0,0.00014929,2]
[333896314,1722610232969,-501.0,0.00015,2]
[333896316,1722610232978,-15485.45497775,0.00015032,2]
[333896319,1722610233001,-3100.0,0.00015032,2]
[333896321,1722610233012,-250.33780553,0.00015032,2]
[333896323,1722610233023,-967.08683004,0.00015032,2]
[333896325,1722610233035,-1331.32137545,0.00015032,2]
[333896328,1722610233046,-2765.79901123,0.00015032,2]
[333896330,1722610233055,-150.0,0.00015045,2]
[333896332,1722610233065,-150.0,0.00015104,2]
[333896334,1722610233075,-2468.96,0.00015144,2]
[333896336,1722610233084,-250.0,0.00015152,2]
[333896338,1722610233094,-150.0,0.00015198,2]
[333896340,1722610233103,-129.46990395,0.00015226,2]
[333896341,1722610233115,-215.36009605,0.00015226,2]
[333896342,1722610233131,-1000.0,0.00015398,2]
[333896343,1722610233140,-142.26875928,0.00015424,2]
[333896344,1722610233157,-7.73124072,0.00015424,2]
[333896345,1722610233167,-158.0471,0.0001543,2]
[333896346,1722610233176,-188.18,0.00015514,2]
[333896347,1722610233187,-150.0,0.00015545,2]
[333896348,1722610233197,-158.0471,0.0001555,2]
[333896349,1722610233208,-150.0,0.00015588,2]
[333896350,1722610233219,-59.54730318,0.00015596,2]
[333896351,1722610233232,-90.45269682,0.00015596,2]
[333896352,1722610233246,-1951.911444,0.00015616,2]
[333896353,1722610233258,-657.767,0.00015617,2]
[333896354,1722610233269,-37.20378379,0.00015617,2]
[333896355,1722610233282,-1261.02900317,0.00015617,2]
[333896356,1722610233296,-283.76721304,0.00015617,2]
[333896357,1722610233306,-1255.0,0.00015617,2]
[333896358,1722610233318,-1765.96268665,0.00015617,2]
[333896359,1722610233331,-159.03731335,0.00015617,2]
[333896360,1722610233342,-811.0,0.00015617,2]
[333896361,1722610233353,-448.389,0.00015617,2]
[333896362,1722610233363,-450.0,0.00015617,2]
[333896363,1722610233383,-1135.0,0.00015617,2]
[333896364,1722610233393,-150.0,0.00015617,2]
[333896365,1722610233404,-550.0,0.00015617,2]
[333896366,1722610233413,-150.0,0.00015617,2]
[333896367,1722610233424,-1892.0,0.00015617,2]
[333896368,1722610233434,-1370.0,0.00015617,2]
[333896369,1722610233446,-3287.0,0.00015617,2]
[333896370,1722610233456,-150.27,0.00015617,2]
[333896371,1722610233466,-21732.0,0.00015617,2]
[333896372,1722610233476,-150.0,0.00015617,2]
[333896373,1722610233486,-977.94674596,0.00015617,2]
[333896374,1722610233498,-225.05325404,0.00015617,2]
[333896375,1722610233508,-35.09736395,0.00015617,2]
[333896376,1722610233519,-1124.86876312,0.00015617,2]
[333896377,1722610233549,-3966.03387293,0.00015617,2]
[333896378,1722610233558,-193.915,0.00015617,2]
[333896379,1722610233568,-200.0,0.00015617,2]
[333896380,1722610233581,-1670.0,0.00015617,2]
[333896381,1722610233592,-5834.0,0.00015617,2]
[333896382,1722610233601,-285.645,0.00015617,2]
[333896383,1722610233612,-150.327,0.00015617,2]
[333896384,1722610233628,-150.0,0.00015617,2]
[333896385,1722610233637,-1075.0,0.00015617,2]
[333896386,1722610233647,-240.0,0.00015663,2]
[333896387,1722610233656,-158.04711,0.0001571,2]
[333896388,1722610233667,-3324.0,0.000158,2]
[333896389,1722610233678,-150.0,0.00015827,2]
[333896390,1722610233688,-405.9179039,0.0001587,2]
[333896391,1722610233698,-405.9179039,0.0001587,2]
[333896392,1722610233708,-188.85,0.00015912,2]
[333896393,1722610233717,-150.0,0.00016157,2]
[333896394,1722610233728,-150.0,0.00016193,2]
[333896395,1722610233739,-150.0,0.00016343,2]
[333896396,1722610233749,-1951.911444,0.00016438,2]
[333896397,1722610233760,-1711.8056517,0.000165,2]
[333896398,1722610233771,-150.0,0.00016639,2]
[333896399,1722610233781,-503.0,0.000167,2]
[333896400,1722610233790,-160.0,0.00016761,2]
[333896401,1722610233800,-150.0,0.0001688,2]
[333896402,1722610233810,-150.0,0.00016889,2]
[333896403,1722610233820,-150.0,0.00016892,2]
[333896404,1722610233830,-150.0,0.00016903,2]
[333896405,1722610233839,-150.0,0.00016922,2]
[333896406,1722610233849,-5273.73727899,0.00016991,2]
[333896407,1722610233858,-12171.0,0.00017004,2]
[333896408,1722610233874,-259.45505949,0.00017004,2]
[333896409,1722610233884,-150.0,0.00017091,2]
[333896410,1722610233894,-295.52,0.00017113,3]
[333896411,1722610233905,-2224.6518,0.00017123,2]
[333896412,1722610233917,-2251.7332,0.00017123,2]
[333896413,1722610233927,-150.0,0.00017218,2]
[333896414,1722610233938,-1951.911444,0.0001726,2]
[333896415,1722610233948,-150.0,0.00017313,2]
[333896416,1722610233959,-1000.0,0.00017323,2]
[333896417,1722610233969,-5273.7372789,0.00017405,2]
[333896418,1722610233979,-344.83,0.0001749,2]
[333896419,1722610233989,-150.0,0.00017559,2]
[333896420,1722610234000,-240.0,0.00017621,2]
[333896421,1722610234010,-150.0,0.0001776,2]
[333896422,1722610234020,-611.2573,0.0001778,2]
[333896423,1722610234029,-163.4876926,0.0001778,2]
[333896424,1722610234039,-5273.7372789,0.0001782,2]
[333896425,1722610234048,-1295.08010484,0.0001787,2]
[333896426,1722610234059,-7791.68461836,0.0001787,2]
[333896427,1722610234068,-153.19,0.0001787,2]
[333896428,1722610234079,-413986.84974194,0.0001788,2]
[333896429,1722610234088,-5194.45641224,0.0001799,2]
[333896430,1722610234098,-371.71125404,0.00018,2]
[333896431,1722610234108,-150.0,0.00018002,2]
[333896432,1722610234124,-2597.22820612,0.00018072,2]
[333896433,1722610234134,-1951.911444,0.00018082,2]
[333896434,1722610234144,-300.14737164,0.00018126,2]
[333896435,1722610234154,-150.0,0.0001824,2]
[333896436,1722610234165,-150.0,0.00018297,2]
[333896437,1722610234175,-150.0,0.00018312,2]
[333896438,1722610234184,-150.0,0.00018314,2]
[333896439,1722610234194,-5194.45641224,0.00018379,2]
[333896440,1722610234204,-400.0,0.000184,6]
[333896441,1722610234214,-2597.22820612,0.00018419,2]
[333896442,1722610234224,-800.0,0.000185,6]
[333896443,1722610234234,-150.0,0.00018573,2]
[333896444,1722610234244,-289.43164258,0.00018595,2]
[333896445,1722610234255,-1200.0,0.000186,6]
[333896446,1722610234264,-5194.45641224,0.00018607,2]
[333896447,1722610234274,-150.0,0.00018617,2]
[333896448,1722610234285,-621.0,0.00018617,2]
[333896449,1722610234295,-1580.0,0.00018617,2]
[333896450,1722610234305,-1925.0,0.00018617,2]
[333896451,1722610234315,-550.0,0.00018617,2]
[333896452,1722610234326,-150.0,0.00018617,2]
[333896453,1722610234337,-1892.0,0.00018617,2]
[333896454,1722610234347,-1370.0,0.00018617,2]
[333896455,1722610234359,-3287.0,0.00018617,2]
[333896456,1722610234377,-4074.112,0.00018617,2]
[333896457,1722610234389,-5126.0,0.00018617,2]
[333896458,1722610234399,-150.0,0.00018617,2]
[333896459,1722610234410,-5832.0,0.00018617,2]
[333896460,1722610234420,-150.0,0.00018617,2]
[333896461,1722610234431,-150.0,0.00018617,2]
[333896462,1722610234441,-329.192,0.00018617,2]
[333896463,1722610234451,-160.0,0.00018624,2]
[333896464,1722610234461,-300.0,0.00018643,2]
[333896465,1722610234472,-150.0,0.00018681,2]
[333896466,1722610234481,-1600.0,0.000187,6]
[333896467,1722610234491,-150.0,0.00018719,2]
[333896468,1722610234501,-150.0,0.00018734,2]
[333896469,1722610234511,-5194.45641224,0.00018768,2]
[333896470,1722610234520,-150.0,0.00018776,2]
[333896471,1722610234530,-2100.0,0.000188,6]
[333896472,1722610234540,-211.6227053,0.0001882,2]
[333896473,1722610234549,-2597.22820612,0.00018849,2]
[333896474,1722610234559,-375.84998,0.00018859,2]
[333896475,1722610234570,-156.604158,0.00018859,2]
[333896476,1722610234587,-173.429356,0.00018859,2]
[333896477,1722610234597,-167.183639,0.00018859,2]
[333896478,1722610234613,-3758.499806,0.00018859,2]
[333896479,1722610234631,-158.901935,0.00018859,2]
[333896480,1722610234641,-150.0,0.00018859,2]
[333896481,1722610234652,-294.0,0.000189,2]
[333896482,1722610234661,-400.0,0.000189,6]
[333896483,1722610234672,-1951.911444,0.00018904,2]
[333896484,1722610234682,-7791.68461836,0.0001899,2]
[333896485,1722610234692,-150.0,0.00018993,2]
[333896486,1722610234701,-44999.52107926,0.00019,2]
[333896487,1722610234710,-500.0,0.00019,14]
[333896488,1722610234720,-1200.781944,0.00019,2]
[333896489,1722610234729,-150.0,0.00019013,2]
[333896490,1722610234738,-150.0,0.00019021,2]
[333896491,1722610234748,-500.0,0.00019025,2]
[333896492,1722610234757,-150.0,0.0001903,2]
[333896493,1722610234767,-150.0,0.00019042,2]
[333896494,1722610234777,-150.0,0.00019043,2]
[333896495,1722610234786,-150.0,0.00019047,2]
[333896496,1722610234795,-2597.22820612,0.00019048,2]
[333896497,1722610234804,-150.0,0.00019049,2]
[333896498,1722610234813,-1500.0,0.00019056,2]
[333896499,1722610234823,-2597.22820612,0.00019059,2]
[333896500,1722610234832,-1500.0,0.00019062,2]
[333896501,1722610234842,-183.42418399,0.00019067,2]
[333896502,1722610234851,-12439.63375223,0.00019069,5]
[333896503,1722610234860,-186.99115861,0.00019078,2]
[333896504,1722610234874,-258.19559911,0.00019078,2]
[333896505,1722610234884,-6065.4356,0.00019078,2]
[333896506,1722610234893,-1500.0,0.00019082,2]
[333896507,1722610234903,-2597.22820612,0.00019084,2]
[333896508,1722610234912,-150.0,0.00019089,2]
[333896509,1722610234922,-1500.0,0.00019092,2]
[333896510,1722610234932,-1500.0,0.00019094,2]
[333896511,1722610234941,-375.84998,0.00019094,2]
[333896512,1722610234951,-3758.499806,0.00019094,2]
[333896513,1722610234960,-2597.22820612,0.00019096,2]
[333896514,1722610234975,-150.0,0.00019097,2]
[333896515,1722610234984,-1500.0,0.00019098,2]
[333896516,1722610234994,-3000.0,0.000191,2]
[333896517,1722610235004,-494.0,0.000191,2]
[333896518,1722610235013,-1494.89548425,0.00019107,2]
[333896519,1722610235023,-150.0,0.00019109,2]
[333896520,1722610235032,-150.0,0.00019109,2]
[333896521,1722610235042,-759.0,0.0001911,2]
[333896522,1722610235051,-150.0,0.00019113,2]
[333896523,1722610235060,-150.0,0.00019119,2]
[333896524,1722610235070,-1500.0,0.00019121,2]
[333896525,1722610235079,-150.0,0.00019129,2]
[333896526,1722610235087,-150.0,0.0001913,2]
[333896527,1722610235096,-150.0,0.00019132,2]
[333896528,1722610235105,-150.0,0.00019134,2]
[333896529,1722610235114,-150.0,0.00019137,2]
[333896530,1722610235127,-150.0,0.00019148,2]
[333896531,1722610235136,-150.0,0.00019151,2]
[333896532,1722610235145,-150.0,0.00019151,2]
[333896533,1722610235154,-2597.22820612,0.00019152,2]
[333896534,1722610235164,-1500.0,0.00019156,2]
[333896535,1722610235173,-5194.45641224,0.00019156,2]
[333896536,1722610235183,-1500.0,0.00019157,2]
[333896537,1722610235192,-5194.45641224,0.00019158,2]
[333896538,1722610235201,-2597.22820612,0.00019158,2]
[333896539,1722610235211,-150.0,0.0001916,2]
[333896540,1722610235220,-12986.1410306,0.00019162,2]
[333896541,1722610235230,-150.0,0.00019163,2]
[333896542,1722610235239,-150.0,0.00019163,2]
[333896543,1722610235249,-150.0,0.00019167,2]
[333896544,1722610235258,-15583.3692367,0.00019168,2]
[333896545,1722610235267,-1500.0,0.00019168,2]
[333896546,1722610235277,-3246.22428767,0.0001917,5]
[333896547,1722610235286,-1271.49568217,0.0001917,5]
[333896548,1722610235295,-150.0,0.0001917,2]
[333896549,1722610235305,-1678.3346433,0.00019172,2]
[333896550,1722610235314,-15213.8963081,0.00019172,2]
[333896551,1722610235323,-42359.4546505,0.00019172,2]
[333896552,1722610235333,-1505.6429629,0.00019172,2]
[333896553,1722610235342,-6736.4099792,0.00019172,2]
[333896554,1722610235352,-3597.2803437,0.00019172,2]
[333896555,1722610235362,-150.0,0.00019176,2]
[333896556,1722610235378,-1271.49568217,0.00019177,5]
[333896557,1722610235388,-150.0,0.00019177,2]
[333896558,1722610235398,-500.0,0.00019178,2]
[333896559,1722610235408,-500.0,0.00019178,2]
[333896560,1722610235417,-500.0,0.00019178,2]
[333896561,1722610235427,-500.0,0.00019178,2]
[333896562,1722610235437,-500.0,0.00019178,2]
[333896563,1722610235447,-500.0,0.00019178,2]
[333896564,1722610235457,-500.0,0.00019178,2]
[333896565,1722610235467,-500.0,0.00019178,2]
[333896566,1722610235476,-500.0,0.00019178,2]
[333896567,1722610235487,-500.0,0.00019178,2]
[333896568,1722610235497,-500.0,0.00019178,2]
[333896569,1722610235507,-500.0,0.00019178,2]
[333896570,1722610235517,-500.0,0.00019178,2]
[333896571,1722610235526,-500.0,0.00019178,2]
[333896572,1722610235536,-500.0,0.00019178,2]
[333896573,1722610235546,-500.0,0.00019178,2]
[333896574,1722610235555,-500.0,0.00019178,2]
[333896575,1722610235565,-644.79,0.00019178,2]
[333896576,1722610235575,-634.45,0.00019178,2]
[333896577,1722610235585,-500.0,0.00019178,2]
[333896578,1722610235594,-500.0,0.00019178,2]
[333896579,1722610235606,-500.0,0.00019178,2]
[333896580,1722610235616,-500.0,0.00019178,2]
[333896581,1722610235635,-500.0,0.00019178,2]
[333896582,1722610235644,-500.0,0.00019178,2]
[333896583,1722610235655,-500.0,0.00019178,2]
[333896584,1722610235665,-500.0,0.00019178,2]
[333896585,1722610235675,-500.0,0.00019178,2]
[333896586,1722610235685,-1135.34,0.00019178,2]
[333896587,1722610235695,-500.0,0.00019178,2]
[333896588,1722610235705,-2612.68,0.00019178,2]
[333896589,1722610235715,-500.0,0.00019178,2]
[333896590,1722610235724,-500.0,0.00019178,2]
[333896591,1722610235734,-1319.98,0.00019178,2]
[333896592,1722610235744,-500.0,0.00019178,2]
[333896593,1722610235753,-1410.62,0.00019178,2]
[333896594,1722610235762,-500.0,0.00019178,2]
[333896595,1722610235771,-2144.17,0.00019178,2]
[333896596,1722610235780,-500.0,0.00019178,2]
[333896597,1722610235790,-500.0,0.00019178,2]
[333896598,1722610235800,-500.27,0.00019178,2]
[333896599,1722610235809,-500.0,0.00019178,2]
[333896600,1722610235819,-500.0,0.00019178,2]
[333896601,1722610235828,-673.9,0.00019178,2]
[333896602,1722610235838,-500.0,0.00019178,2]
[333896603,1722610235848,-1444.53,0.00019178,2]
[333896604,1722610235858,-379.46767723,0.00019178,2]
[333896605,1722610235874,-500.0,0.00019178,2]
[333896606,1722610235883,-500.0,0.00019178,2]
[333896607,1722610235893,-500.0,0.00019178,2]
[333896608,1722610235903,-500.0,0.00019178,2]
[333896609,1722610235912,-500.0,0.00019178,2]
[333896610,1722610235922,-500.0,0.00019178,2]
[333896611,1722610235932,-284.6886789,0.00019178,2]
[333896612,1722610235941,-500.0,0.00019178,2]
[333896613,1722610235950,-618.03,0.00019178,2]
[333896614,1722610235960,-1930.78,0.00019178,2]
[333896615,1722610235969,-500.0,0.00019178,2]
[333896616,1722610235978,-500.0,0.00019178,2]
[333896617,1722610235988,-500.0,0.00019178,2]
[333896618,1722610235998,-500.0,0.00019178,2]
[333896619,1722610236007,-1952.44,0.00019178,2]
[333896620,1722610236016,-500.0,0.00019178,2]
[333896621,1722610236026,-500.0,0.00019178,2]
[333896622,1722610236035,-500.0,0.00019178,2]
[333896623,1722610236046,-659.1,0.00019178,2]
[333896624,1722610236056,-3153.81,0.00019178,2]
[333896625,1722610236065,-1627.6,0.00019178,2]
[333896626,1722610236075,-915.59,0.00019178,2]
[333896627,1722610236084,-500.0,0.00019178,2]
[333896628,1722610236093,-500.0,0.00019178,2]
[333896629,1722610236102,-1429.41,0.00019178,2]
[333896630,1722610236112,-500.0,0.00019178,2]
[333896631,1722610236128,-500.0,0.00019178,2]
[333896632,1722610236137,-500.0,0.00019178,2]
[333896633,1722610236146,-1568.82,0.00019178,2]
[333896634,1722610236155,-500.0,0.00019178,2]
[333896635,1722610236164,-500.0,0.00019178,2]
[333896636,1722610236174,-500.0,0.00019178,2]
[333896637,1722610236183,-1269.38,0.00019178,2]
[333896638,1722610236192,-500.0,0.00019178,2]
[333896639,1722610236202,-1692.76,0.00019178,2]
[333896640,1722610236211,-591.48,0.00019178,2]
[333896641,1722610236220,-1388.59,0.00019178,2]
[333896642,1722610236230,-500.0,0.00019178,2]
[333896643,1722610236239,-1428.2,0.00019178,2]
[333896644,1722610236248,-500.0,0.00019178,2]
[333896645,1722610236258,-500.0,0.00019178,2]
[333896646,1722610236267,-500.0,0.00019178,2]
[333896647,1722610236276,-950.44,0.00019178,2]
[333896648,1722610236286,-823.97,0.00019178,2]
[333896649,1722610236295,-525.27,0.00019178,2]
[333896650,1722610236305,-937.32,0.00019178,2]
[333896651,1722610236314,-775.44,0.00019178,2]
[333896652,1722610236324,-1068.53,0.00019178,2]
[333896653,1722610236333,-3126.31,0.00019178,2]
[333896654,1722610236342,-1551.0,0.00019178,2]
[333896655,1722610236352,-500.0,0.00019178,2]
[333896656,1722610236361,-825.6,0.00019178,2]
[333896657,1722610236376,-500.0,0.00019178,2]
[333896658,1722610236386,-500.0,0.00019178,2]
[333896659,1722610236395,-805.33,0.00019178,2]
[333896660,1722610236405,-751.67,0.00019178,2]
[333896661,1722610236415,-500.0,0.00019178,2]
[333896662,1722610236424,-1028.24,0.00019178,2]
[333896663,1722610236434,-500.0,0.00019178,2]
[333896664,1722610236444,-429.76216424,0.00019178,2]
[333896665,1722610236454,-735.99,0.00019178,2]
[333896666,1722610236464,-938.92,0.00019178,2]
[333896667,1722610236474,-612.04,0.00019178,2]
[333896668,1722610236483,-1932.51,0.00019178,2]
[333896669,1722610236493,-537.98,0.00019178,2]
[333896670,1722610236713,-500.0,0.00019178,2]
[333896671,1722610236726,-500.0,0.00019178,2]
[333896672,1722610236736,-500.0,0.00019178,2]
[333896673,1722610236745,-1888.77,0.00019178,2]
[333896674,1722610236755,-300.0,0.00019178,2]
[333896675,1722610236764,-892.11,0.00019178,2]
[333896676,1722610236774,-2148.59,0.00019178,2]
[333896677,1722610236783,-500.0,0.00019178,2]
[333896678,1722610236793,-1287.98,0.00019178,2]
[333896679,1722610236802,-500.0,0.00019178,2]
[333896680,1722610236812,-500.0,0.00019178,2]
[333896681,1722610236821,-500.0,0.00019178,2]
[333896682,1722610236831,-500.0,0.00019178,2]
[333896683,1722610236841,-991.86,0.00019178,2]
[333896684,1722610236850,-615.09,0.00019178,2]
[333896685,1722610236860,-511.56,0.00019178,2]
[333896686,1722610236871,-810.98,0.00019178,2]
[333896687,1722610236880,-1061.5,0.00019178,2]
[333896688,1722610236890,-1687.71,0.00019178,2]
[333896689,1722610236900,-658.52,0.00019178,2]
[333896690,1722610236909,-500.0,0.00019178,2]
[333896691,1722610236919,-500.0,0.00019178,2]
[333896692,1722610236928,-894.53,0.00019178,2]
[333896693,1722610236938,-500.0,0.00019178,2]
[333896694,1722610236947,-500.0,0.00019178,2]
[333896695,1722610236957,-583.8,0.00019178,2]
[333896696,1722610236966,-642.07,0.00019178,2]
[333896697,1722610236975,-500.0,0.00019178,2]
[333896698,1722610236986,-500.0,0.00019178,2]
[333896699,1722610236995,-443.12093274,0.00019178,2]
[333896700,1722610237005,-1223.91,0.00019178,2]
[333896701,1722610237016,-1767.39,0.00019178,2]
[333896702,1722610237026,-500.0,0.00019178,2]
[333896703,1722610237037,-500.0,0.00019178,2]
[333896704,1722610237048,-967.4,0.00019178,2]
[333896705,1722610237058,-500.0,0.00019178,2]